[Event "WYCC 2018 O18"]
[Site "Halkidiki"]
[Date "2018.10.22"]
[Round "4"]
[White "Burovic, Rijad"]
[Black "Giesinger, Elias"]
[Result "1-0"]
[ECO "B34"]
[WhiteElo "2380"]
[BlackElo "2131"]
[Annotator "NA"]
[PlyCount "161"]
[EventDate "2018.10.20"]
[EventType "swiss"]
[EventCountry "GRE"]
[SourceTitle "playchess.com"]
[Source "ChessBase"]
[SourceQuality "1"]
[TimeControl "40/5400+30:1800+30"]

1. e4 {[%emt 0:00:00]} c5 {[%emt 0:00:02]} 2. Nc3 {[%emt 0:00:20]} Nc6 {[%emt 0:01:42]} 3. Nge2 {[%emt 0:00:55]} g6 {[%emt 0:04:18]} 4. d4 {[%emt 0:01:36]} cxd4 {[%emt 0:01:00]} 5. Nxd4 {[%emt 0:00:08]} Bg7 {[%emt 0:00:08]} 6. Be3 {[%emt 0:00:09]} Nf6 {[%emt 0:04:06]} 7. Be2 {[%emt 0:01:53]} O-O {[%emt 0:04:54]} 8. Qd2 {[%emt 0:00:37]} d5 {[%emt 0:08:34]} 9. exd5 {[%emt 0:39:15]} Nxd5 {[%emt 0:07:29]} 10. Nxd5 {[%emt 0:14:52]} Nxd4 {[%emt 0:05:58] LiveBook: 7 Games} 11. Bxd4 {[%emt 0:05:12]} Qxd5 {[%emt 0:00:56] B34: Sicilian: Accelerated Dragon with 5 Nc3: sidelines} 12. Bxg7 {[%emt 0:01:31]} Qxd2+ {[%emt 0:22:31]} (12... Qxg2 $17 13. O-O-O (13. Qd4 e5 14. Qxe5 Qxh1+ 15. Kd2 Rd8+ 16. Bd3 Qd5 17. Qf6 Rd6 {0-1 (17) Fogarasi,T (2367)-Delchev,A (2620) Bayern 2011}) 13... Kxg7) 13. Kxd2 {[%emt 0:00:12]} Kxg7 {[%emt 0:00:05]} 14. c4 {[%emt 0:04:40]} Be6 $146 {[%emt 0:02:38]} ({Predecessor:} 14... Rd8+ 15. Kc3 Be6 16. Rhd1 Kf6 17. b4 Rac8 18. a4 Rc7 19. Rd4 {1-0 (41) Famoroso,S (1932)-Crismann,A (1926) Victoria 2015}) 15. Ke3 {[%emt 0:02:33]} Rac8 {[%emt 0:02:51]} 16. b3 {[%emt 0:05:20]} a5 {[%emt 0:00:39]} 17. f4 {[%emt 0:03:08]} Kf6 {[%emt 0:09:31]} 18. Rhd1 {[%emt 0:02:50]} g5 {[%emt 0:04:06]} 19. Rd4 {[%emt 0:02:19]} Rc5 {[%emt 0:01:59]} 20. Rf1 {[%emt 0:01:19]} b6 {[%emt 0:03:30]} 21. Bd3 {[%emt 0:02:27]} h6 {[%emt 0:01:28]} 22. a3 {[%emt 0:01:33]} gxf4+ {[%emt 0:05:13]} 23. Rfxf4+ {[%emt 0:01:25]} Kg7 {[%emt 0:00:47]} 24. Be2 {[%emt 0:02:05]} Rfc8 {[%emt 0:03:31]} 25. Rfe4 {[%emt 0:01:27]} Kf6 {[%emt 0:01:20]} 26. Bd3 {[%emt 0:00:28]} Rg5 {[%emt 0:02:00]} 27. g3 {[%emt 0:00:31]} Rcc5 {[%emt 0:00:37]} 28. Rd8 {[%emt 0:00:56]} Rge5 {[%emt 0:00:41]} 29. Rb8 {[%emt 0:00:52]} Rxe4+ {[%emt 0:00:26]} 30. Bxe4 {[%emt 0:01:40]} a4 {[%emt 0:00:14]} 31. Rxb6 {[%emt 0:00:22]} axb3 {[%emt 0:00:05]} 32. Bd5 {[%emt 0:00:13]} b2 {[%emt 0:01:29]} 33. Bxe6 {[%emt 0:01:15]} fxe6 {[%emt 0:00:33]} 34. Kd4 {[%emt 0:00:47]} Ra5 {[%emt 0:00:10]} 35. Rxb2 {[%emt 0:00:59]} e5+ {[%emt 0:00:13]} 36. Ke4 {[%emt 0:00:57]} Rxa3 {[%emt 0:00:20]} 37. Rf2+ {[%emt 0:00:41]} Ke6 {[%emt 0:00:33]} 38. Rb2 {[%emt 0:00:47]} Kf6 {[%emt 0:00:59]} 39. Rf2+ {[%emt 0:00:31]} Ke6 {[%emt 0:00:00]} 40. Rf5 {[%emt 0:00:00]} Rc3 {[%emt 0:00:00]} 41. Rxe5+ {[%emt 0:03:37]} Kf6 {[%emt 0:04:37]} 42. Rf5+ {[%emt 0:03:31]} Kg6 {[%emt 0:04:21]} 43. Rc5 {[%emt 0:01:17]} Rc2 {[%emt 0:05:27]} 44. Rc6+ {[%emt 0:02:53]} Kh5 {[%emt 0:03:22]} 45. h3 {[%emt 0:12:00]} Rc3 {[%emt 0:02:00]} 46. g4+ {[%emt 0:02:23]} Kg5 {[%emt 0:00:07]} 47. Rc5+ {[%emt 0:00:24]} Kg6 {[%emt 0:00:49]} 48. h4 {[%emt 0:00:58]} Kf6 {[%emt 0:04:49]} 49. g5+ {[%emt 0:01:39]} hxg5 {[%emt 0:00:13]} 50. hxg5+ {[%emt 0:00:00]} Ke6 {[%emt 0:00:44]} 51. Re5+ {[%emt 0:00:38]} Kf7 {[%emt 0:00:31]} 52. c5 {[%emt 0:00:13]} e6 {[%emt 0:02:57]} 53. Kd4 {[%emt 0:07:01]} Rc1 {[%emt 0:02:47]} 54. Re3 {[%emt 0:01:02]} Rg1 {[%emt 0:01:38]} 55. Re5 {[%emt 0:00:07]} Rg4+ {[%emt 0:01:14]} 56. Ke3 {[%emt 0:00:14]} Ke7 {[%emt 0:00:25]} 57. Kf3 {[%emt 0:00:42]} Rg1 {[%emt 0:02:13]} 58. Kf2 {[%emt 0:00:00]} Rg4 {[%emt 0:00:07]} 59. Kf3 {[%emt 0:00:02]} Rg1 {[%emt 0:00:05]} 60. Kf4 {[%emt 0:00:01]} Rg2 {[%emt 0:00:34]} 61. Ke4 {[%emt 0:00:45]} Rg4+ {[%emt 0:00:05]} 62. Kd3 {[%emt 0:00:07]} Kd7 {[%emt 0:02:04]} 63. Ke3 {[%emt 0:01:07]} Ke7 {[%emt 0:00:04]} 64. Kd2 {[%emt 0:00:46]} Rg3 {[%emt 0:00:10]} 65. c6 {[%emt 0:01:34]} Rg2+ {[%emt 0:01:10]} (65... Kd6 $11) 66. Kd3 {[%emt 0:00:05]} Rg3+ {[%emt 0:00:32]} 67. Kd4 {[%emt 0:00:10]} Kd6 {[%emt 0:00:40] [#]} 68. Rc5 $1 {[%emt 0:00:24]} Rg4+ {[%emt 0:01:20]} 69. Ke3 {[%emt 0:00:25]} Kc7 {[%emt 0:00:20]} 70. Kf3 {[%emt 0:00:20]} Rg1 {[%emt 0:00:41]} 71. Kf4 {[%emt 0:00:12]} Rg2 {[%emt 0:00:39]} 72. Rc1 {[%emt 0:00:31]} e5+ {[%emt 0:00:50]} 73. Kf5 {[%emt 0:00:01]} e4 {[%emt 0:00:05]} 74. Re1 {[%emt 0:02:15]} (74. Rc3 $142 Kd8 75. Kf4 (75. Kxe4 Rxg5 76. Kf4 Rg1 $11)) 74... Rf2+ {[%emt 0:00:42]} 75. Kxe4 {[%emt 0:00:25]} Kxc6 {[%emt 0:00:21]} 76. Rd1 {[%emt 0:00:11]} Rg2 $18 {[%emt 0:01:04]} 77. Kf5 {[%emt 0:00:06]} Rf2+ {[%emt 0:00:05]} 78. Kg6 {[%emt 0:00:07]} Rf3 {[%emt 0:00:17]} 79. Kg7 {[%emt 0:00:12]} Rf2 {[%emt 0:00:13]} 80. g6 {[%emt 0:00:06]} Kc7 {[%emt 0:00:22]} 81. Kg8 {[%emt 0:00:26]} 1-0

[Event "WYCC 2018 O18"]
[Site "Halkidiki"]
[Date "2018.10.22"]
[Round "4"]
[White "Muha, Miljenko"]
[Black "Dallemagne, Maximilien"]
[Result "1-0"]
[ECO "B39"]
[WhiteElo "2365"]
[BlackElo "2094"]
[Annotator "NA"]
[PlyCount "51"]
[EventDate "2018.10.20"]
[EventType "swiss"]
[EventCountry "GRE"]
[SourceTitle "playchess.com"]
[Source "ChessBase"]
[SourceQuality "1"]
[TimeControl "40/5400+30:1800+30"]

1. d4 {[%emt 0:00:00]} Nf6 {[%emt 0:00:00]} 2. Nf3 {[%emt 0:00:00]} g6 {[%emt 0:00:00]} 3. c4 {[%emt 0:00:10]} c5 {[%emt 0:00:00]} 4. Nc3 {[%emt 0:01:11]} cxd4 {[%emt 0:00:23]} 5. Nxd4 {[%emt 0:00:06]} Bg7 {[%emt 0:00:13]} 6. e4 {[%emt 0:01:18]} Nc6 {[%emt 0:00:35]} 7. Be3 {[%emt 0:01:44]} Ng4 {[%emt 0:00:21]} 8. Qxg4 {[%emt 0:04:16]} Nxd4 {[%emt 0:00:40]} 9. Qd1 {[%emt 0:01:58]} e5 {[%emt 0:00:06]} 10. Bd3 {[%emt 0:01:47]} O-O {[%emt 0:00:17]} 11. O-O {[%emt 0:04:00]} d6 {[%emt 0:08:55] LiveBook: 138 Partien} 12. Nd5 {[%emt 0:07:02]} Nc6 {[%emt 0:17:22] B39: Sicilian: Maroczy Bind with 5...Bg7 and 7...Ng4} (12... Be6 13. Bxd4 exd4 14. Qb3 Qd7 15. Rae1 Rac8 16. Qa3 b6 17. Qb4 Rfe8 18. Nf4 Bh6 19. Nxe6 Rxe6 20. f4 {½-½ (47) Svane,R (2573)-Mikhalevski,V (2520) Zalakaros 2017}) 13. Qd2 $146 {[%emt 0:06:43]} ({Predecessor:} 13. Qb3 b6 14. f4 exf4 15. Bxf4 Be6 16. Rad1 Rc8 17. Be2 Nd4 18. Qe3 Bxd5 19. Rxd4 Bxd4 20. Qxd4 {½-½ (29) Canibal,J (2399)-Ruimy,M (2219) ICCF email 2003}) 13... Bh8 {[%emt 0:09:52]} 14. Rad1 {[%emt 0:03:51]} Nd4 {[%emt 0:05:27]} 15. f4 {[%emt 0:14:04]} f5 $2 {[%emt 0:11:45]} (15... Be6 $16) 16. Bxd4 {[%emt 0:03:21]} exd4 {[%emt 0:01:27]} 17. exf5 {[%emt 0:01:24]} Bxf5 {[%emt 0:00:32]} 18. Bxf5 {[%emt 0:01:47]} Rxf5 {[%emt 0:00:02]} 19. Rde1 {[%emt 0:00:38]} Rf7 {[%emt 0:04:44]} 20. Re4 {[%emt 0:10:47]} Qd7 {[%emt 0:10:57]} 21. Rfe1 {[%emt 0:00:57]} h5 {[%emt 0:03:18]} 22. Ne7+ $18 {[%emt 0:08:52]} Kh7 {[%emt 0:01:29]} 23. f5 {[%emt 0:01:30]} Rxf5 {[%emt 0:14:21]} 24. Nxf5 {[%emt 0:00:24]} Qxf5 {[%emt 0:00:02]} 25. Re7+ {[%emt 0:00:39]} Kg8 {[%emt 0:03:47]} 26. Qh6 1-0

[Event "WYCC 2018 O18"]
[Site "Halkidiki"]
[Date "2018.10.22"]
[Round "4"]
[White "Agmanov, Zhandos"]
[Black "Ozates, Tuna"]
[Result "1-0"]
[ECO "B32"]
[WhiteElo "2354"]
[BlackElo "2225"]
[Annotator "NA"]
[PlyCount "69"]
[EventDate "2018.10.20"]
[EventType "swiss"]
[EventCountry "GRE"]
[SourceTitle "playchess.com"]
[Source "ChessBase"]
[SourceQuality "1"]
[TimeControl "40/5400+30:1800+30"]

1. e4 {[%emt 0:00:00]} c5 {[%emt 0:00:00]} 2. Nf3 {[%emt 0:00:00]} Nc6 {[%emt 0:00:00]} 3. d4 {[%emt 0:00:00]} cxd4 {[%emt 0:00:00]} 4. Nxd4 {[%emt 0:00:01]} e5 {[%emt 0:00:00]} 5. Nb5 {[%emt 0:00:04]} d6 {[%emt 0:00:00]} 6. c4 {[%emt 0:00:17]} Be7 {[%emt 0:00:03]} 7. N1c3 {[%emt 0:00:06]} a6 {[%emt 0:00:04]} 8. Na3 {[%emt 0:00:05]} f5 {[%emt 0:00:22]} 9. exf5 {[%emt 0:00:23]} Bxf5 {[%emt 0:00:05]} 10. Bd3 {[%emt 0:00:04]} Be6 {[%emt 0:00:05]} 11. O-O {[%emt 0:00:08]} Nf6 {[%emt 0:00:06]} 12. Nc2 {[%emt 0:00:12] B32: Sicilian: Löwenthal and Kalashnikov Variations} O-O {[%emt 0:02:17]} (12... Qd7 13. Bg5 O-O 14. b3 Bd8 15. Rb1 Bb6 16. Be3 Bc7 17. Qd2 h6 18. f3 Rad8 19. Be4 Ba5 {½-½ (52) Andreikin,D (2736)-Roganovic,M (2478) Novi Sad 2016}) 13. Nd5 {[%emt 0:01:06]} Rb8 {[%emt 0:05:08]} 14. b3 {[%emt 0:00:20]} Qd7 {[%emt 0:05:31]} 15. Ba3 {[%emt 0:02:07]} Kh8 $146 {[%emt 0:02:48]} ({Predecessor:} 15... Bd8 16. Nce3 Kh8 17. Rc1 Nd4 18. Qd2 Nxd5 19. cxd5 Bg8 20. Qb4 Rf6 21. Bxa6 Rg6 22. Bd3 Nf3+ 23. Kh1 Rh6 24. gxf3 Qh3 25. Ng4 Qxf3+ 26. Kg1 Bxd5 {0-1 (26) Librelato,K (2085)-Amura,C (2262) Villa Martelli 2017}) 16. Nce3 {[%emt 0:09:27]} b5 {[%emt 0:15:14]} 17. Qd2 {[%emt 0:08:51]} Bd8 {[%emt 0:05:57]} 18. Rac1 {[%emt 0:15:30]} Bxd5 {[%emt 0:29:50]} 19. Nxd5 {[%emt 0:14:10]} Nxd5 {[%emt 0:00:53]} 20. cxd5 {[%emt 0:00:31]} Nd4 {[%emt 0:00:06]} 21. f4 {[%emt 0:03:53]} Bf6 {[%emt 0:13:01]} 22. Kh1 {[%emt 0:02:53]} Rbe8 {[%emt 0:00:41]} 23. Rce1 {[%emt 0:01:31]} Rf7 $16 {[%emt 0:08:35]} (23... Kg8 $1 $11) 24. Qb4 {[%emt 0:05:33]} Rd8 {[%emt 0:01:27]} 25. Qa5 {[%emt 0:09:01]} Bh4 {[%emt 0:09:40]} 26. Re4 {[%emt 0:03:41]} Rdf8 {[%emt 0:00:01]} 27. Qxa6 {[%emt 0:01:17]} Rf6 {[%emt 0:00:07]} 28. Bb2 {[%emt 0:04:19]} Rh6 {[%emt 0:00:45]} 29. fxe5 {[%emt 0:02:58]} Nf5 {[%emt 0:00:56]} 30. Rxh4 {[%emt 0:01:02]} Rxh4 {[%emt 0:00:34]} 31. Rxf5 {[%emt 0:00:24]} Re8 {[%emt 0:00:39]} 32. Qxd6 {[%emt 0:03:19]} Qxd6 {[%emt 0:00:25]} 33. exd6 {[%emt 0:00:06]} Kg8 {[%emt 0:00:21]} 34. d7 {[%emt 0:00:42]} Rd8 {[%emt 0:00:07]} 35. Bxb5 {[%emt 0:00:14]} 1-0

[Event "WYCC 2018 O18"]
[Site "Halkidiki"]
[Date "2018.10.22"]
[Round "4"]
[White "Stijve, Theo"]
[Black "Olimjonov, Sarvarbek"]
[Result "1-0"]
[ECO "C10"]
[WhiteElo "2345"]
[BlackElo "2074"]
[Annotator "NA"]
[PlyCount "125"]
[EventDate "2018.10.20"]
[EventType "swiss"]
[EventCountry "GRE"]
[SourceTitle "playchess.com"]
[Source "ChessBase"]
[SourceQuality "1"]
[TimeControl "40/5400+30:1800+30"]

1. e4 {[%emt 0:00:14]} e6 {[%emt 0:00:00]} 2. d4 {[%emt 0:00:07]} d5 {[%emt 0:00:00]} 3. Nc3 {[%emt 0:00:11]} Nc6 {[%emt 0:00:00]} 4. Nf3 {[%emt 0:00:09]} Nf6 {[%emt 0:00:06]} 5. Bd3 {[%emt 0:00:09]} Bb4 {[%emt 0:00:27]} 6. O-O {[%emt 0:00:13] C10: French with 3 Nc3: Unusual Black 3rd moves and 3...dxe4} Bxc3 {[%emt 0:00:06]} 7. exd5 {[%emt 0:00:07]} Nxd4 {[%emt 0:00:10]} (7... Bxd4 8. dxc6 Bb6 9. Qe2 bxc6 10. Ne5 Bb7 11. Bg5 h6 12. Bh4 Qd4 13. Bg3 O-O {1-0 (67) Brkic,A (2590)-Jobava,B (2685) Batumi 2018}) 8. bxc3 {[%emt 0:00:09]} Nxf3+ {[%emt 0:00:04]} 9. Qxf3 {[%emt 0:00:10]} Qxd5 {[%emt 0:00:06]} 10. Qg3 {[%emt 0:00:09]} b6 {[%emt 0:00:08]} 11. a4 $146 {[%emt 0:01:01]} ({Predecessor:} 11. c4 Qc6 12. Be2 Ba6 13. Bf3 Qxc4 {½-½ (43) Vieira,V-Hanio,J (2351) ICCF email 2015}) 11... Bb7 {[%emt 0:05:37]} 12. Bb5+ {[%emt 0:07:30]} c6 {[%emt 0:12:42]} 13. Be2 {[%emt 0:00:50]} Ne4 {[%emt 0:16:14]} 14. Qe3 {[%emt 0:16:46]} O-O-O {[%emt 0:18:10]} 15. c4 {[%emt 0:11:48]} (15. a5 $5) 15... Qd4 {[%emt 0:04:55]} 16. Qxd4 {[%emt 0:04:22]} Rxd4 {[%emt 0:00:11]} 17. Bb2 {[%emt 0:00:09]} Rd7 {[%emt 0:02:24]} 18. Bxg7 {[%emt 0:01:35]} Rg8 {[%emt 0:00:41]} 19. Bh6 {[%emt 0:06:04]} c5 {[%emt 0:04:37]} 20. f3 {[%emt 0:06:28]} Nd6 {[%emt 0:05:57]} 21. Bd3 {[%emt 0:06:59]} Nf5 {[%emt 0:13:12]} 22. Bf4 {[%emt 0:01:25]} Nd4 {[%emt 0:01:34]} 23. Kf2 {[%emt 0:01:18]} f6 {[%emt 0:01:37]} 24. Rab1 {[%emt 0:08:12]} Rdg7 {[%emt 0:02:20]} 25. Rg1 {[%emt 0:00:13]} Nc6 {[%emt 0:01:01]} 26. Rbe1 {[%emt 0:03:02]} e5 {[%emt 0:01:54]} 27. Bh6 {[%emt 0:05:26]} Re7 {[%emt 0:00:45]} 28. c3 {[%emt 0:01:44]} Na5 {[%emt 0:01:15]} 29. g4 {[%emt 0:03:49]} Kc7 {[%emt 0:03:52]} 30. g5 {[%emt 0:05:17]} fxg5 {[%emt 0:00:18]} 31. Bxg5 {[%emt 0:02:07]} Rf7 {[%emt 0:00:54]} 32. Bf4 {[%emt 0:01:39]} Rxg1 {[%emt 0:02:14]} 33. Bxe5+ {[%emt 0:00:02]} Kd7 {[%emt 0:00:15]} 34. Rxg1 {[%emt 0:00:15]} Rxf3+ {[%emt 0:01:03]} 35. Ke2 {[%emt 0:00:08]} Rf7 {[%emt 0:00:21]} 36. Ke3 {[%emt 0:03:12]} Rf3+ {[%emt 0:00:31]} 37. Ke2 {[%emt 0:00:04]} Rf7 {[%emt 0:00:03]} 38. Rg5 {[%emt 0:01:29]} Bc6 {[%emt 0:01:23]} 39. Bf5+ {[%emt 0:03:46]} Ke7 {[%emt 0:00:37]} 40. Bc2 {[%emt 0:00:00]} Nxc4 {[%emt 0:00:00]} 41. Bg7 {[%emt 0:07:26]} Bf3+ {[%emt 0:06:37]} 42. Ke1 {[%emt 0:01:27]} h5 {[%emt 0:06:14]} 43. Bh6 {[%emt 0:07:52]} Nd6 {[%emt 0:07:32]} 44. Re5+ {[%emt 0:05:23]} Kd7 {[%emt 0:00:31]} 45. Bg5 {[%emt 0:00:17]} Nc4 {[%emt 0:03:41]} 46. Rf5 {[%emt 0:01:35]} Rxf5 {[%emt 0:00:28]} 47. Bxf5+ {[%emt 0:00:07]} Kc7 {[%emt 0:00:12]} 48. Bc2 {[%emt 0:03:45]} a5 {[%emt 0:05:57]} 49. Bf4+ {[%emt 0:01:35]} Kc6 {[%emt 0:00:34]} 50. Kf2 {[%emt 0:00:21]} Bg4 {[%emt 0:00:49]} 51. Kg3 {[%emt 0:01:21]} b5 {[%emt 0:03:44]} 52. h3 {[%emt 0:02:03]} Be6 {[%emt 0:00:32]} 53. Bb3 {[%emt 0:02:29]} b4 {[%emt 0:00:33]} 54. cxb4 {[%emt 0:00:40]} axb4 {[%emt 0:00:18]} 55. Kh4 {[%emt 0:00:48]} Kd5 {[%emt 0:00:44]} 56. Be3 {[%emt 0:00:45]} Kc6 {[%emt 0:00:50]} 57. Bf2 {[%emt 0:00:41]} Bf7 {[%emt 0:00:10]} 58. a5 {[%emt 0:01:12]} Kb5 {[%emt 0:01:19]} 59. a6 {[%emt 0:00:24]} Kxa6 {[%emt 0:00:03]} 60. Bxc5 {[%emt 0:00:11]} Kb5 {[%emt 0:00:02]} 61. Bf8 {[%emt 0:00:51]} Be8 {[%emt 0:00:44]} 62. Bd1 {[%emt 0:00:49]} Ne5 {[%emt 0:01:07]} 63. Bg7 $11 {[%emt 0:00:35]} 1-0

[Event "WYCC 2018 O18"]
[Site "Halkidiki"]
[Date "2018.10.22"]
[Round "4"]
[White "Varacalli, Francisco"]
[Black "Petersson, Baldur Teodor"]
[Result "0-1"]
[ECO "B42"]
[WhiteElo "2334"]
[BlackElo "2195"]
[Annotator "NA"]
[PlyCount "74"]
[EventDate "2018.10.20"]
[EventType "swiss"]
[EventCountry "GRE"]
[SourceTitle "playchess.com"]
[Source "ChessBase"]
[SourceQuality "1"]
[TimeControl "40/5400+30:1800+30"]

1. e4 {[%emt 0:00:00]} c5 {[%emt 0:00:00]} 2. Nf3 {[%emt 0:00:00]} e6 {[%emt 0:00:00]} 3. d4 {[%emt 0:00:44]} cxd4 {[%emt 0:00:03]} 4. Nxd4 {[%emt 0:00:08]} a6 {[%emt 0:00:07]} 5. Bd3 {[%emt 0:01:27]} Bc5 {[%emt 0:00:13]} 6. Nb3 {[%emt 0:00:45]} Be7 {[%emt 0:00:08]} 7. Nc3 {[%emt 0:01:22]} d6 {[%emt 0:00:48]} 8. O-O {[%emt 0:00:35]} Nf6 {[%emt 0:00:43]} 9. f4 {[%emt 0:00:42]} Nbd7 {[%emt 0:00:27]} 10. Qe2 {[%emt 0:03:24]} Qc7 {[%emt 0:01:26]} 11. Bd2 {[%emt 0:03:23]} b6 {[%emt 0:01:13] B43: Sicilian: Kan Variation: 5 Nc3} (11... b5 12. a4 b4 13. Nd1 a5 14. Kh1 d5 15. exd5 Nxd5 16. f5 e5 17. c4 N5f6 18. Nf2 O-O 19. Ne4 {0-1 (64) Movsesian,S (2672)-Svidler,P (2753) Dubai 2014}) 12. Rae1 {[%emt 0:01:07]} Bb7 {[%emt 0:00:38]} 13. e5 {[%emt 0:00:37]} Nd5 {[%emt 0:01:30]} 14. f5 {[%emt 0:00:15]} Nxe5 {[%emt 0:11:53]} 15. fxe6 {[%emt 0:00:44]} fxe6 {[%emt 0:00:47]} 16. Qh5+ {[%emt 0:01:21]} g6 {[%emt 0:09:58] [#]} 17. Bxg6+ $1 $146 {[%emt 0:03:32]} ({Predecessor:} 17. Qh3 Qd7 18. Rxe5 dxe5 19. Bxg6+ {0-1 (33) Kulpruethanon,T (2068)-Solak,D (2599) Istanbul 2012}) 17... Nxg6 {[%emt 0:00:25]} 18. Rxe6 {[%emt 0:00:15]} Nxc3 {[%emt 0:05:03]} 19. Bxc3 {[%emt 0:01:56]} Rf8 {[%emt 0:02:22]} 20. Rfe1 {[%emt 0:49:01]} O-O-O {[%emt 0:08:26]} 21. Qxh7 {[%emt 0:02:33]} Bh4 {[%emt 0:01:12]} 22. Qxc7+ {[%emt 0:03:16]} Kxc7 {[%emt 0:00:06]} 23. Rxg6 {[%emt 0:01:43]} Bf2+ {[%emt 0:00:23]} 24. Kf1 {[%emt 0:00:41]} Bxe1+ {[%emt 0:04:46]} 25. Kxe1 {[%emt 0:00:44]} Rde8+ {[%emt 0:00:09]} 26. Kd2 {[%emt 0:02:39]} Rf2+ {[%emt 0:00:13]} 27. Kd3 {[%emt 0:00:17]} Be4+ {[%emt 0:03:12]} 28. Ke3 {[%emt 0:00:29]} Rf7 {[%emt 0:00:34]} 29. Rf6 $19 {[%emt 0:01:49]} Bxc2+ {[%emt 0:02:22]} 30. Kf4 {[%emt 0:04:54]} Bxb3 {[%emt 0:00:38]} 31. axb3 {[%emt 0:00:08]} Rh7 {[%emt 0:06:48]} 32. h3 {[%emt 0:02:29]} Kc6 {[%emt 0:01:14]} 33. Kf5 {[%emt 0:01:32]} Re2 {[%emt 0:08:02]} 34. g4 {[%emt 0:00:47]} Rxh3 {[%emt 0:00:36]} 35. g5 {[%emt 0:00:29]} Rg3 {[%emt 0:02:16]} 36. g6 {[%emt 0:00:38]} Reg2 {[%emt 0:00:36]} 37. g7 {[%emt 0:04:56]} Rxg7 {[%emt 0:00:33]} 0-1

[Event "WYCC 2018 O18"]
[Site "Halkidiki"]
[Date "2018.10.22"]
[Round "4"]
[White "Roshka, Yevgeniy"]
[Black "Samaridis, Konstantinos"]
[Result "1-0"]
[ECO "A04"]
[WhiteElo "2328"]
[BlackElo "2052"]
[Annotator "NA"]
[PlyCount "119"]
[EventDate "2018.10.20"]
[EventType "swiss"]
[EventCountry "GRE"]
[SourceTitle "playchess.com"]
[Source "ChessBase"]
[SourceQuality "1"]
[TimeControl "40/5400+30:1800+30"]

1. Nf3 {[%emt 0:00:00]} e6 {[%emt 0:00:00]} 2. g3 {[%emt 0:00:37]} c5 {[%emt 0:00:00]} 3. Bg2 {[%emt 0:00:05] A04: Unusual lines after 1 Nf3 and King's Indian Attack} Nc6 {[%emt 0:00:00]} 4. O-O {[%emt 0:00:04]} (4. c4 g5 5. d3 h6 6. Nc3 Bg7 7. h4 g4 8. Nd2 d6 9. e3 f5 10. Nb3 Nge7 {1-0 (41) Eljanov,P (2755)-Rapport,R (2702) Wijk aan Zee 2017 CBM 177 [Schroeder,J]}) 4... g6 {[%emt 0:00:04]} 5. d4 {[%emt 0:01:56]} cxd4 {[%emt 0:01:40]} 6. Nxd4 {[%emt 0:00:06]} a6 {[%emt 0:04:36]} 7. Nxc6 $146 {[%emt 0:05:40]} ({Predecessor:} 7. c4 Bg7 8. Nc2 Nge7 9. Nc3 O-O 10. Bg5 h6 {1-0 (56) Larsen,B (2565)-Short,N (2615) Brussels 1987}) 7... dxc6 {[%emt 0:07:23]} 8. Qxd8+ {[%emt 0:00:17]} Kxd8 {[%emt 0:00:01]} 9. Rd1+ {[%emt 0:00:07]} Ke8 {[%emt 0:04:51]} 10. Nc3 {[%emt 0:00:51]} e5 {[%emt 0:02:12]} 11. Bg5 {[%emt 0:06:42]} f6 {[%emt 0:09:02]} 12. Be3 {[%emt 0:00:06]} Bf5 {[%emt 0:00:55]} 13. Ne4 {[%emt 0:00:23]} h5 {[%emt 0:21:14]} 14. Nd6+ {[%emt 0:01:03]} Bxd6 {[%emt 0:00:36]} 15. Rxd6 {[%emt 0:00:02]} Rd8 {[%emt 0:04:51]} 16. Rxd8+ {[%emt 0:00:44]} Kxd8 {[%emt 0:00:00]} 17. Bb6+ {[%emt 0:00:11]} Kc8 {[%emt 0:03:44]} 18. Rd1 {[%emt 0:00:23]} Ne7 {[%emt 0:01:04]} 19. Rd6 {[%emt 0:00:18]} Rf8 {[%emt 0:00:56]} 20. e4 {[%emt 0:00:44]} Bd7 {[%emt 0:02:39]} 21. f4 {[%emt 0:01:21]} Bg4 {[%emt 0:08:08]} 22. Kf2 {[%emt 0:01:43]} h4 {[%emt 0:03:26]} 23. Bf1 {[%emt 0:01:01]} f5 {[%emt 0:06:54]} 24. fxe5 {[%emt 0:02:32]} fxe4+ {[%emt 0:02:20]} 25. Rf6 {[%emt 0:00:09]} Re8 {[%emt 0:01:21]} 26. c4 {[%emt 0:00:52]} hxg3+ {[%emt 0:02:53]} 27. Kxg3 {[%emt 0:01:18]} Bf5 {[%emt 0:00:34]} 28. Kf4 {[%emt 0:00:33]} Kb8 {[%emt 0:01:34]} 29. h4 {[%emt 0:02:48]} Ng8 {[%emt 0:04:02]} 30. Rd6 {[%emt 0:00:25]} Nh6 {[%emt 0:02:52]} 31. Rd8+ {[%emt 0:00:30]} Rxd8 {[%emt 0:00:08]} 32. Bxd8 {[%emt 0:00:01]} Kc8 $18 {[%emt 0:02:02]} 33. Bg5 {[%emt 0:00:03]} Nf7 {[%emt 0:00:48]} 34. h5 {[%emt 0:00:20]} Kd7 {[%emt 0:02:13]} 35. h6 {[%emt 0:00:01]} Ke6 {[%emt 0:00:32]} 36. h7 {[%emt 0:00:25]} e3 {[%emt 0:00:59]} 37. c5 {[%emt 0:01:24]} Kd5 {[%emt 0:00:03]} 38. Bf6 {[%emt 0:00:13]} Kxc5 {[%emt 0:01:47]} 39. h8=Q {[%emt 0:00:14]} Nxh8 {[%emt 0:00:01]} 40. Bxh8 {[%emt 0:00:00]} Be6 {[%emt 0:00:00]} 41. Kxe3 {[%emt 0:03:38]} Bxa2 {[%emt 0:04:47]} 42. Bh3 {[%emt 0:03:07]} g5 {[%emt 0:14:53]} 43. Bf6 {[%emt 0:00:57]} b5 {[%emt 0:05:10]} 44. Bxg5 {[%emt 0:05:18]} a5 {[%emt 0:00:57]} 45. Be7+ {[%emt 0:01:18]} Kd5 {[%emt 0:00:30]} 46. Bg2+ {[%emt 0:00:31]} Kxe5 {[%emt 0:01:14]} 47. Bxc6 {[%emt 0:00:02]} Bc4 {[%emt 0:00:30]} 48. Bd8 {[%emt 0:00:13]} a4 {[%emt 0:00:01]} 49. Bc7+ {[%emt 0:00:06]} Ke6 {[%emt 0:01:10]} 50. Bb6 {[%emt 0:00:45]} Kd6 {[%emt 0:00:10]} 51. Be8 {[%emt 0:00:23]} Ke7 {[%emt 0:00:41]} 52. Bh5 {[%emt 0:00:18]} Kd6 {[%emt 0:00:45]} 53. Kd4 {[%emt 0:00:10]} Kc6 {[%emt 0:00:47]} 54. Bc5 {[%emt 0:00:01]} Bf1 {[%emt 0:01:30]} 55. Bf3+ {[%emt 0:00:03]} Kc7 {[%emt 0:00:15]} 56. Be4 {[%emt 0:00:23]} Bh3 {[%emt 0:01:15]} 57. Kc3 {[%emt 0:00:04]} Bf1 {[%emt 0:03:37]} 58. Bd3 {[%emt 0:01:33]} b4+ {[%emt 0:00:45]} 59. Bxb4 {[%emt 0:00:06]} a3 {[%emt 0:01:31]} 60. Bxa3 {[%emt 0:00:06]} 1-0